fUSD/lending_fUSD_20240114
["ID","MTS","AMOUNT","RATE_DAILY","PERIOD"]
[311601023,1705264264383,-500.0,0.0003041,2]
[311601024,1705264264392,-500.0,0.0003041,2]
[311601025,1705264264401,-525.95,0.0003041,2]
[311601026,1705264264410,-500.0,0.0003041,2]
[311601027,1705264264419,-500.0,0.0003041,2]
[311601028,1705264264428,-500.0,0.0003041,2]
[311601029,1705264264437,-500.0,0.0003041,2]
[311601030,1705264264445,-500.0,0.0003041,2]
[311601031,1705264264454,-507.67,0.0003041,2]
[311601032,1705264264463,-513.81,0.0003041,2]
[311601033,1705264264472,-500.0,0.0003041,2]
[311601034,1705264264481,-500.0,0.0003041,2]
[311601035,1705264264490,-636.62,0.0003041,2]
[311601036,1705264264499,-500.0,0.0003041,2]
[311601037,1705264264508,-500.0,0.0003041,2]
[311601038,1705264264517,-500.0,0.0003041,2]
[311601039,1705264264526,-500.0,0.0003041,2]
[311601040,1705264264535,-902.91,0.0003041,2]
[311601041,1705264264544,-500.0,0.0003041,2]
[311601042,1705264264553,-500.0,0.0003041,2]
[311601043,1705264264562,-767.34,0.0003041,2]
[311601044,1705264264572,-500.0,0.0003041,2]
[311601045,1705264264581,-500.0,0.0003041,2]
[311601046,1705264264591,-1333.47,0.0003041,2]
[311601047,1705264264602,-638.06,0.0003041,2]
[311601048,1705264264612,-502.86896975,0.0003041,2]
[311601049,1705264264621,-500.0,0.0003041,2]
[311601050,1705264264631,-500.0,0.0003041,2]
[311601051,1705264264641,-500.0,0.0003041,2]
[311601052,1705264264651,-803.03,0.0003041,2]
[311601053,1705264264660,-500.0,0.0003041,2]
[311601054,1705264264670,-500.0,0.0003041,2]
[311601055,1705264264679,-500.0,0.0003041,2]
[311601056,1705264264687,-500.0,0.0003041,2]
[311601057,1705264264697,-274.6149109,0.0003041,2]
[311601058,1705264264705,-500.0,0.0003041,2]
[311601059,1705264264714,-536.45,0.0003041,2]
[311601060,1705264264723,-500.0,0.0003041,2]
[311601061,1705264264732,-500.0,0.0003041,2]
[311601062,1705264264741,-500.0,0.0003041,2]
[311601063,1705264264750,-500.0,0.0003041,2]
[311601064,1705264264759,-598.26,0.0003041,2]
[311601065,1705264264768,-661.41,0.0003041,2]
[311601066,1705264264778,-1303.11,0.0003041,2]
[311601067,1705264264786,-500.0,0.0003041,2]
[311601068,1705264264795,-776.96,0.0003041,2]
[311601069,1705264264805,-500.0,0.0003041,2]
[311601070,1705264264813,-619.53,0.0003041,2]
[311601071,1705264264822,-500.0,0.0003041,2]
[311601072,1705264264831,-500.0,0.0003041,2]
[311601073,1705264264840,-583.54,0.0003041,2]
[311601074,1705264264851,-1031.14,0.0003041,2]
[311601075,1705264264860,-500.0,0.0003041,2]
[311601076,1705264264870,-500.0,0.0003041,2]
[311601077,1705264264879,-1069.22,0.0003041,2]
[311601078,1705264264888,-668.9,0.0003041,2]
[311601079,1705264264897,-500.0,0.0003041,2]
[311601080,1705264264906,-500.0,0.0003041,2]
[311601081,1705264264915,-500.0,0.0003041,2]
[311601082,1705264264924,-500.0,0.0003041,2]
[311601083,1705264264933,-522.71,0.0003041,2]
[311601084,1705264264942,-500.0,0.0003041,2]
[311601085,1705264264951,-500.0,0.0003041,2]
[311601086,1705264264960,-587.68048851,0.0003041,2]
[311601087,1705264264970,-623.93,0.0003041,2]
[311601088,1705264264979,-524.27,0.0003041,2]
[311601089,1705264264989,-1298.17,0.0003041,2]
[311601090,1705264264999,-500.0,0.0003041,2]
[311601091,1705264265009,-500.0,0.0003041,2]
[311601092,1705264265019,-500.0,0.0003041,2]
[311601093,1705264265029,-705.28,0.0003041,2]
[311601094,1705264265039,-500.0,0.0003041,2]
[311601095,1705264265049,-553.43,0.0003041,2]
[311601096,1705264265059,-500.0,0.0003041,2]
[311601097,1705264265069,-500.0,0.0003041,2]
[311601098,1705264265080,-298.65024623,0.0003041,2]
[311601099,1705264265090,-841.22,0.0003041,2]
[311601100,1705264265103,-779.76,0.0003041,2]
[311601101,1705264265113,-500.0,0.0003041,2]
[311601102,1705264265123,-594.72,0.0003041,2]
[311601103,1705264265133,-663.62,0.0003041,2]
[311601104,1705264265143,-754.6,0.0003041,2]
[311601105,1705264265153,-500.0,0.0003041,2]
[311601106,1705264265163,-971.46,0.0003041,2]
[311601107,1705264265173,-500.0,0.0003041,2]
[311601108,1705264265182,-500.0,0.0003041,2]
[311601109,1705264265192,-500.0,0.0003041,2]
[311601110,1705264265202,-500.0,0.0003041,2]
[311601111,1705264265211,-640.22,0.0003041,2]
[311601112,1705264265221,-500.0,0.0003041,2]
[311601113,1705264265231,-500.0,0.0003041,2]
[311601114,1705264265240,-880.9,0.0003041,2]
[311601115,1705264265251,-1002.82,0.0003041,2]
[311601116,1705264265260,-500.0,0.0003041,2]
[311601117,1705264265270,-668.12,0.0003041,2]
[311601118,1705264265280,-604.35,0.0003041,2]
[311601119,1705264265290,-690.19,0.0003041,2]
[311601120,1705264265299,-517.09187229,0.0003041,2]
[311601121,1705264265308,-500.0,0.0003041,2]
[311601122,1705264265318,-500.0,0.0003041,2]
[311601123,1705264265327,-500.0,0.0003041,2]
[311601124,1705264265336,-500.0,0.0003041,2]
[311601125,1705264265345,-688.38,0.0003041,2]
[311601126,1705264265359,-619.28,0.0003041,2]
[311601127,1705264265368,-500.0,0.0003041,2]
[311601128,1705264265378,-529.02,0.0003041,2]
[311601129,1705264265387,-779.6,0.0003041,2]
[311601130,1705264265397,-500.0,0.0003041,2]
[311601131,1705264265407,-1160.15,0.0003041,2]
[311601132,1705264265417,-500.0,0.0003041,2]
[311601133,1705264265427,-1042.53,0.0003041,2]
[311601134,1705264265436,-500.0,0.0003041,2]
[311601135,1705264265446,-500.0,0.0003041,2]
[311601136,1705264265456,-500.0,0.0003041,2]
[311601137,1705264265466,-500.0,0.0003041,2]
[311601138,1705264265475,-500.0,0.0003041,2]
[311601139,1705264265485,-500.0,0.0003041,2]
[311601140,1705264265494,-500.0,0.0003041,2]
[311601141,1705264265503,-500.0,0.0003041,2]
[311601142,1705264265513,-790.69,0.0003041,2]
[311601143,1705264265523,-684.1,0.0003041,2]
[311601144,1705264265532,-500.0,0.0003041,2]
[311601145,1705264265545,-500.0,0.0003041,2]
[311601146,1705264265555,-550.66838366,0.0003041,10]
[311601147,1705264265565,-500.0,0.0003041,2]
[311601148,1705264265574,-500.0,0.0003041,2]
[311601149,1705264265583,-500.0,0.0003041,2]
[311601150,1705264265593,-647.62,0.0003041,2]
[311601151,1705264265606,-500.0,0.0003041,2]
[311601152,1705264265614,-500.0,0.0003041,2]
[311601153,1705264265623,-500.0,0.0003041,2]
[311601154,1705264265633,-500.0,0.0003041,2]
[311601155,1705264265643,-638.26013466,0.0003041,2]
[311601156,1705264265653,-500.0,0.0003041,2]
[311601157,1705264265663,-500.0,0.0003041,2]
[311601158,1705264265673,-3167.32,0.0003041,2]
[311601159,1705264265683,-500.0,0.0003041,2]
[311601160,1705264265692,-571.94,0.0003041,2]
[311601161,1705264265702,-522.59,0.0003041,2]
[311601162,1705264265711,-567.97,0.0003041,2]
[311601163,1705264265721,-500.0,0.0003041,2]
[311601164,1705264265730,-500.0,0.0003041,2]
[311601165,1705264265740,-573.13754716,0.0003041,2]
[311601166,1705264265749,-500.0,0.0003041,2]
[311601167,1705264265758,-500.0,0.0003041,2]
[311601168,1705264265768,-500.0,0.0003041,2]
[311601169,1705264265777,-500.0,0.0003041,2]
[311601170,1705264265786,-500.0,0.0003041,2]
[311601171,1705264265796,-774.9,0.0003041,2]
[311601172,1705264265805,-500.0,0.0003041,2]
[311601173,1705264265815,-1000.0,0.0003041,2]
[311601174,1705264265824,-1088.65,0.0003041,2]
[311601175,1705264265833,-884.91,0.0003041,2]
[311601176,1705264265843,-537.49,0.0003041,2]
[311601177,1705264265857,-1154.9,0.0003041,2]
[311601178,1705264265866,-500.0,0.0003041,2]
[311601179,1705264265875,-500.0,0.0003041,2]
[311601180,1705264265885,-766.25,0.0003041,2]
[311601181,1705264265895,-500.0,0.0003041,2]
[311601182,1705264265905,-500.0,0.0003041,2]
[311601183,1705264265914,-500.0,0.0003041,2]
[311601184,1705264265923,-739.11,0.0003041,2]
[311601185,1705264265932,-2842.79,0.0003041,2]
[311601186,1705264265941,-500.0,0.0003041,2]
[311601187,1705264265950,-500.0,0.0003041,2]
[311601188,1705264265959,-500.0,0.0003041,2]
[311601189,1705264265971,-703.48,0.0003041,2]
[311601190,1705264265987,-500.0,0.0003041,2]
[311601191,1705264266001,-500.0,0.0003041,2]
[311601192,1705264266016,-500.0,0.0003041,2]
[311601193,1705264266028,-755.21,0.0003041,2]
[311601194,1705264266040,-500.0,0.0003041,2]
[311601195,1705264266052,-500.0,0.0003041,2]
[311601196,1705264266066,-655.3,0.0003041,2]
[311601197,1705264266080,-500.0,0.0003041,2]
[311601198,1705264266094,-500.0,0.0003041,2]
[311601199,1705264266108,-649.3,0.0003041,2]
[311601200,1705264266121,-500.0,0.0003041,2]
[311601201,1705264266134,-1021.39,0.0003041,2]
[311601202,1705264266149,-500.0,0.0003041,2]
[311601203,1705264266161,-500.0,0.0003041,2]
[311601204,1705264266171,-500.0,0.0003041,2]
[311601205,1705264266184,-1175.51,0.0003041,2]
[311601206,1705264266197,-500.0,0.0003041,2]
[311601207,1705264266209,-500.0,0.0003041,2]
[311601208,1705264266222,-500.0,0.0003041,2]
[311601209,1705264266235,-701.34,0.0003041,2]
[311601210,1705264266248,-686.32,0.0003041,2]
[311601211,1705264266261,-500.0,0.0003041,2]
[311601212,1705264266274,-1477.05,0.0003041,2]
[311601213,1705264266285,-956.76,0.0003041,2]
[311601214,1705264266296,-500.0,0.0003041,2]
[311601215,1705264266308,-500.0,0.0003041,2]
[311601216,1705264266323,-500.0,0.0003041,2]
[311601217,1705264266335,-500.0,0.0003041,2]
[311601218,1705264266349,-601.17,0.0003041,2]
[311601219,1705264266362,-500.0,0.0003041,2]
[311601220,1705264266374,-1476.27,0.0003041,2]
[311601221,1705264266385,-500.0,0.0003041,2]
[311601222,1705264266398,-500.0,0.0003041,2]
[311601223,1705264266412,-1151.69,0.0003041,2]
[311601224,1705264266425,-1030.11,0.0003041,2]
[311601225,1705264266437,-815.37,0.0003041,2]
[311601226,1705264266451,-500.0,0.0003041,2]
[311601227,1705264266464,-500.0,0.0003041,2]
[311601228,1705264266477,-500.0,0.0003041,2]
[311601229,1705264266490,-1060.69,0.0003041,2]
[311601230,1705264266502,-500.0,0.0003041,2]
[311601231,1705264266513,-500.0,0.0003041,2]
[311601232,1705264266523,-663.4,0.0003041,2]
[311601233,1705264266539,-500.0,0.0003041,2]
[311601234,1705264266551,-500.0,0.0003041,2]
[311601235,1705264266564,-500.0,0.0003041,2]
[311601236,1705264266577,-500.0,0.0003041,2]
[311601237,1705264266588,-1567.33,0.0003041,2]
[311601238,1705264266608,-500.0,0.0003041,2]
[311601239,1705264266622,-690.39,0.0003041,2]
[311601240,1705264266633,-507.53,0.0003041,2]
[311601241,1705264266644,-1087.14,0.0003041,2]
[311601242,1705264266655,-780.22,0.0003041,2]
[311601243,1705264266666,-1031.89,0.0003041,2]
[311601244,1705264266682,-500.0,0.0003041,2]
[311601245,1705264266695,-968.33,0.0003041,2]
[311601246,1705264266706,-500.0,0.0003041,2]
[311601247,1705264266718,-15692.02,0.0003041,2]
[311601248,1705264266730,-500.0,0.0003041,2]
[311601249,1705264266742,-720.95,0.0003041,2]
[311601250,1705264266754,-500.0,0.0003041,2]
[311601251,1705264266767,-4778.91,0.0003041,2]
[311601252,1705264266778,-500.0,0.0003041,2]
[311601253,1705264266792,-4080.55,0.0003041,2]
[311601254,1705264266804,-524.66,0.0003041,2]
[311601255,1705264266817,-1610.45,0.0003041,2]
[311601256,1705264266830,-1037.02,0.0003041,2]
[311601257,1705264266843,-370.30838238,0.0003041,2]
[311601258,1705264266858,-500.0,0.0003041,2]
[311601259,1705264266871,-500.0,0.0003041,2]
[311601260,1705264266885,-500.0,0.0003041,2]
[311601261,1705264266898,-500.0,0.0003041,2]
[311601262,1705264266911,-500.0,0.0003041,2]
[311601263,1705264266924,-753.69,0.0003041,2]
[311601264,1705264266937,-500.0,0.0003041,2]
[311601265,1705264266949,-512.48,0.0003041,2]
[311601266,1705264266961,-819.18,0.0003041,2]
[311601267,1705264266974,-658.91,0.0003041,2]
[311601268,1705264266985,-500.0,0.0003041,2]
[311601269,1705264266998,-922.23,0.0003041,2]
[311601270,1705264267011,-1259.43,0.0003041,2]
[311601271,1705264267023,-908.29,0.0003041,2]
[311601272,1705264267034,-500.0,0.0003041,2]
[311601273,1705264267046,-500.0,0.0003041,2]
[311601274,1705264267058,-500.0,0.0003041,2]
[311601275,1705264267070,-500.0,0.0003041,2]
[311601276,1705264267081,-632.63507314,0.0003041,2]
[311601277,1705264267093,-500.0,0.0003041,2]
[311601278,1705264267105,-1934.5,0.0003041,2]
[311601279,1705264267116,-1552.56,0.0003041,2]
[311601280,1705264267128,-500.0,0.0003041,2]
[311601281,1705264267141,-500.0,0.0003041,2]
[311601282,1705264267156,-500.0,0.0003041,2]
[311601283,1705264267168,-584.56165883,0.0003041,2]
[311601284,1705264267179,-1783.71,0.0003041,2]
[311601285,1705264267191,-500.0,0.0003041,2]
[311601286,1705264267202,-813.78,0.0003041,2]
[311601287,1705264267213,-508.7,0.0003041,2]
[311601288,1705264267224,-500.0,0.0003041,2]
[311601289,1705264267235,-1672.88,0.0003041,2]
[311601290,1705264267247,-887.69,0.0003041,2]
[311601291,1705264267258,-500.0,0.0003041,2]
[311601292,1705264267270,-1426.72,0.0003041,2]
[311601293,1705264267281,-1249.33,0.0003041,2]
[311601294,1705264267293,-1118.87,0.0003041,2]
[311601295,1705264267304,-500.0,0.0003041,2]
[311601296,1705264267316,-500.0,0.0003041,2]
[311601297,1705264267327,-5627.11,0.0003041,2]
[311601298,1705264267339,-1369.47,0.0003041,2]
[311601299,1705264267351,-575.47,0.0003041,2]
[311601300,1705264267362,-500.0,0.0003041,2]
[311601301,1705264267373,-500.0,0.0003041,2]
[311601302,1705264267384,-567.98,0.0003041,2]
[311601303,1705264267395,-570.84,0.0003041,2]
[311601304,1705264267406,-164.8668485,0.0003041,2]
[311601305,1705264267417,-552.23,0.0003041,2]
[311601306,1705264267428,-500.0,0.0003041,2]
[311601307,1705264267439,-599.67,0.0003041,2]
[311601308,1705264267450,-682.29,0.0003041,2]
[311601309,1705264267461,-500.0,0.0003041,2]
[311601310,1705264267472,-500.0,0.0003041,2]
[311601311,1705264267483,-799.56,0.0003041,2]
[311601312,1705264267494,-2554.34,0.0003041,2]
[311601313,1705264267505,-1798.17,0.0003041,2]
[311601314,1705264267516,-1153.92,0.0003041,2]
[311601315,1705264267527,-500.0,0.0003041,2]
[311601316,1705264267538,-500.0,0.0003041,2]
[311601317,1705264267549,-2674.9,0.0003041,2]
[311601318,1705264267559,-500.0,0.0003041,2]
[311601319,1705264267570,-500.0,0.0003041,2]
[311601320,1705264267582,-4747.99,0.0003041,2]
[311601321,1705264267592,-500.0,0.0003041,2]
[311601322,1705264267605,-500.0,0.0003041,2]
[311601323,1705264267615,-500.0,0.0003041,2]
[311601324,1705264267625,-874.04,0.0003041,2]
[311601325,1705264267636,-500.0,0.0003041,2]
[311601326,1705264267646,-522.44,0.0003041,2]
[311601327,1705264267657,-3082.22,0.0003041,2]
[311601328,1705264267668,-500.0,0.0003041,2]
[311601329,1705264267679,-1501.1,0.0003041,2]
[311601330,1705264267689,-2400.47,0.0003041,2]
[311601331,1705264267701,-953.45,0.0003041,2]
[311601332,1705264267712,-500.0,0.0003041,2]
[311601333,1705264267722,-1591.7,0.0003041,2]
[311601334,1705264267733,-500.0,0.0003041,2]
[311601335,1705264267744,-500.0,0.0003041,2]
[311601336,1705264267755,-500.0,0.0003041,2]
[311601337,1705264267767,-1195.23,0.0003041,2]
[311601338,1705264267778,-500.0,0.0003041,2]
[311601339,1705264267789,-500.0,0.0003041,2]
[311601340,1705264267801,-500.0,0.0003041,2]
[311601341,1705264267811,-500.0,0.0003041,2]
[311601342,1705264267822,-830.52,0.0003041,2]
[311601343,1705264267832,-645.86,0.0003041,2]
[311601344,1705264267843,-500.0,0.0003041,2]
[311601345,1705264267857,-500.0,0.0003041,2]
[311601346,1705264267867,-500.0,0.0003041,2]
[311601347,1705264267877,-552.65,0.0003041,2]
[311601348,1705264267887,-1563.61,0.0003041,2]
[311601349,1705264267897,-500.0,0.0003041,2]
[311601350,1705264267908,-500.0,0.0003041,2]
[311601351,1705264267918,-3852.95,0.0003041,2]
[311601352,1705264267929,-1788.89,0.0003041,2]
[311601353,1705264267939,-500.0,0.0003041,2]
[311601354,1705264267950,-3780.57,0.0003041,2]
[311601355,1705264267960,-689.0,0.0003041,2]
[311601356,1705264267972,-500.0,0.0003041,2]
[311601357,1705264267982,-1026.83,0.0003041,2]
[311601358,1705264267994,-1077.68,0.0003041,2]
[311601359,1705264268004,-500.0,0.0003041,2]
[311601360,1705264268014,-543.18,0.0003041,2]
[311601361,1705264268026,-500.0,0.0003041,2]
[311601362,1705264268037,-500.0,0.0003041,2]
[311601363,1705264268048,-3887.42,0.0003041,2]
[311601364,1705264268058,-500.0,0.0003041,2]
[311601365,1705264268069,-8222.74,0.0003041,2]
[311601366,1705264268079,-706.36,0.0003041,2]
[311601367,1705264268090,-3010.13,0.0003041,2]
[311601368,1705264268102,-1212.77,0.0003041,2]
[311601369,1705264268112,-519.80106044,0.0003041,2]
[311601370,1705264268122,-1605.08,0.0003041,2]
[311601371,1705264268134,-500.0,0.0003041,2]
[311601372,1705264268149,-500.0,0.0003041,2]
[311601373,1705264268159,-500.0,0.0003041,2]
[311601374,1705264268170,-967.6,0.0003041,2]
[311601375,1705264268180,-913.46,0.0003041,2]
[311601376,1705264268190,-3703.12,0.0003041,2]
[311601377,1705264268201,-583.22,0.0003041,2]
[311601378,1705264268212,-379.68,0.0003041,2]
[311601379,1705264268223,-500.0,0.0003041,2]
[311601380,1705264268241,-30649.83,0.0003041,2]
[311601381,1705264268252,-500.0,0.0003041,2]
[311601382,1705264268262,-3434.07,0.0003041,2]
[311601383,1705264268272,-500.0,0.0003041,2]
[311601384,1705264268282,-500.0,0.0003041,2]
[311601385,1705264268293,-965.74,0.0003041,2]
[311601386,1705264268303,-1729.11,0.0003041,2]
[311601387,1705264268314,-348.66789545,0.0003041,2]
[311601388,1705264268324,-500.0,0.0003041,2]
[311601389,1705264268334,-11897.09,0.0003041,2]
[311601390,1705264268345,-842.61,0.0003041,2]
[311601391,1705264268356,-1027.7,0.0003041,2]
[311601392,1705264268366,-500.0,0.0003041,2]
[311601393,1705264268376,-500.0,0.0003041,2]
[311601394,1705264268386,-6230.07,0.0003041,2]
[311601395,1705264268396,-500.0,0.0003041,2]
[311601396,1705264268407,-500.0,0.0003041,2]
[311601397,1705264268417,-500.0,0.0003041,2]
[311601398,1705264268427,-1130.45,0.0003041,2]
[311601399,1705264268437,-500.0,0.0003041,2]
[311601400,1705264268447,-500.0,0.0003041,2]
[311601401,1705264268458,-1353.14,0.0003041,2]
[311601402,1705264268468,-500.0,0.0003041,2]
[311601403,1705264268479,-500.0,0.0003041,2]
[311601404,1705264268490,-500.0,0.0003041,2]
[311601405,1705264268500,-500.0,0.0003041,5]
[311601406,1705264268511,-500.0,0.0003041,2]
[311601407,1705264268521,-500.0,0.0003041,2]
[311601408,1705264268531,-3435.49,0.0003041,2]
[311601409,1705264268542,-500.0,0.0003041,2]
[311601410,1705264268553,-500.0,0.0003041,2]
[311601411,1705264268564,-500.0,0.0003041,2]
[311601412,1705264268575,-644.33,0.0003041,2]
[311601413,1705264268586,-573.71,0.0003041,2]
[311601414,1705264268598,-2448.9,0.0003041,2]
[311601415,1705264268610,-500.0,0.0003041,2]
[311601416,1705264268621,-3036.82,0.0003041,2]
[311601417,1705264268633,-597.1,0.0003041,2]
[311601418,1705264268645,-750.17,0.0003041,2]
[311601419,1705264268657,-828.04,0.0003041,2]
[311601420,1705264268669,-2478.07,0.0003041,2]
[311601421,1705264268681,-1871.96,0.0003041,2]
[311601422,1705264268693,-801.45,0.0003041,2]
[311601423,1705264268706,-1895.33,0.0003041,2]
[311601424,1705264268718,-500.0,0.0003041,2]
[311601425,1705264268730,-1560.14,0.0003041,2]
[311601426,1705264268741,-3224.85,0.0003041,2]
[311601427,1705264268752,-533.31,0.0003041,2]
[311601428,1705264268764,-500.0,0.0003041,2]
[311601429,1705264268776,-5325.11,0.0003041,2]
[311601430,1705264268787,-500.0,0.0003041,2]
[311601431,1705264268798,-1784.8,0.0003041,2]
[311601432,1705264268809,-949.53,0.0003041,2]
[311601433,1705264268819,-730.14,0.0003041,2]
[311601434,1705264268830,-1488.85,0.0003041,2]
[311601435,1705264268841,-500.0,0.0003041,2]
[311601436,1705264268858,-500.0,0.0003041,2]
[311601437,1705264268869,-847.15,0.0003041,2]
[311601438,1705264268881,-2331.02,0.0003041,2]
[311601439,1705264268892,-787.16,0.0003041,2]
[311601440,1705264268903,-841.76,0.0003041,2]
[311601441,1705264268914,-1513.17,0.0003041,2]
[311601442,1705264268926,-500.0,0.0003041,2]
[311601443,1705264268937,-524.76,0.0003041,2]
[311601444,1705264269834,-1046.23,0.0003041,2]
[311601445,1705264269867,-611.14,0.0003041,2]
[311601446,1705264269886,-1523.32,0.0003041,2]
[311601447,1705264269902,-500.0,0.0003041,2]
[311601448,1705264269911,-500.0,0.0003041,2]
[311601449,1705264269921,-4188.56,0.0003041,2]
[311601450,1705264269930,-500.0,0.0003041,2]
[311601451,1705264269938,-500.0,0.0003041,2]
[311601452,1705264269948,-500.0,0.0003041,2]
[311601453,1705264269957,-2000.73,0.0003041,2]
[311601454,1705264269967,-1059.93,0.0003041,2]
[311601455,1705264269976,-1556.83,0.0003041,2]
[311601456,1705264269985,-559.75,0.0003041,2]
[311601457,1705264269995,-500.0,0.0003041,2]
[311601458,1705264270005,-1572.81,0.0003041,2]
[311601459,1705264270014,-593.18,0.0003041,2]
[311601460,1705264270024,-790.76,0.0003041,2]
[311601461,1705264270034,-722.19,0.0003041,2]
[311601462,1705264270043,-500.0,0.0003041,2]
[311601463,1705264270053,-1160.27,0.0003041,2]
[311601464,1705264270062,-238.74954015,0.0003041,2]
[311601465,1705264270072,-500.0,0.0003041,2]
[311601466,1705264270081,-500.0,0.0003041,2]
[311601467,1705264270091,-500.0,0.0003041,2]
[311601468,1705264270103,-508.33278517,0.0003041,2]
[311601469,1705264270113,-1333.04,0.0003041,2]
[311601470,1705264270122,-10911.16,0.0003041,2]
[311601471,1705264270133,-500.0,0.0003041,2]
[311601472,1705264270145,-2072.02,0.0003041,2]
[311601473,1705264270155,-500.0,0.0003041,2]
[311601474,1705264270165,-4765.57,0.0003041,2]
[311601475,1705264270176,-711.46,0.0003041,2]
[311601476,1705264270186,-500.0,0.0003041,2]
[311601477,1705264270197,-500.0,0.0003041,2]
[311601478,1705264270207,-500.0,0.0003041,2]
[311601479,1705264270217,-568.95,0.0003041,2]
[311601480,1705264270228,-500.0,0.0003041,2]
[311601481,1705264270239,-500.0,0.0003041,2]
[311601482,1705264270249,-1038.07,0.0003041,2]
[311601483,1705264270258,-500.0,0.0003041,2]
[311601484,1705264270267,-7269.33,0.0003041,2]
[311601485,1705264270277,-6925.8,0.0003041,2]
[311601486,1705264270287,-500.0,0.0003041,2]
[311601487,1705264270296,-500.0,0.0003041,2]
[311601488,1705264270306,-1179.24,0.0003041,2]
[311601489,1705264270315,-500.0,0.0003041,2]
[311601490,1705264270325,-775.66,0.0003041,2]
[311601491,1705264270334,-1868.67,0.0003041,2]
[311601492,1705264270343,-500.0,0.0003041,2]
[311601493,1705264270356,-1572.91,0.0003041,2]
[311601494,1705264270366,-500.0,0.0003041,2]
[311601495,1705264270375,-1049.48,0.0003041,2]
[311601496,1705264270384,-500.0,0.0003041,2]
[311601497,1705264270394,-756.09,0.0003041,2]
[311601498,1705264270405,-500.0,0.0003041,2]
[311601499,1705264270415,-1736.87,0.0003041,2]
[311601500,1705264270426,-500.0,0.0003041,2]
[311601501,1705264270437,-1088.94,0.0003041,2]
[311601502,1705264270448,-500.0,0.0003041,2]
[311601503,1705264270458,-660.67,0.0003041,2]
[311601504,1705264270468,-1917.76,0.0003041,2]
[311601505,1705264270477,-500.0,0.0003041,2]
[311601506,1705264270486,-500.0,0.0003041,2]
[311601507,1705264270495,-1883.84,0.0003041,2]
[311601508,1705264270505,-500.0,0.0003041,2]
[311601509,1705264270515,-500.0,0.0003041,2]
[311601510,1705264270525,-500.0,0.0003041,2]
[311601511,1705264270535,-500.0,0.0003041,2]
[311601512,1705264270545,-3549.24,0.0003041,2]
[311601513,1705264270555,-3692.47,0.0003041,2]
[311601514,1705264270564,-500.0,0.0003041,2]
[311601515,1705264270576,-1639.07,0.0003041,2]
[311601516,1705264270587,-726.79,0.0003041,2]
[311601517,1705264270600,-500.0,0.0003041,2]
[311601518,1705264270610,-500.0,0.0003041,2]
[311601519,1705264270619,-1673.99,0.0003041,2]
[311601520,1705264270631,-500.0,0.0003041,2]
[311601521,1705264270641,-500.0,0.0003041,2]
[311601522,1705264270652,-1877.85,0.0003041,2]